Cogmind - Beta 13 @@@ ROGUE MODE // 2024.05.08 @ 21:10:57 Player: CatPlusPlus Result: Self-destructed Performance ------------- Evolutions (3) 1500 Regions Visited (10) 2000 Robots Destroyed (122) 610 Value Destroyed (3394) 3394 Prototype IDs (42) 840 Alien Tech Used (0) 0 Bonus (1800) 1800 TOTAL SCORE: 10144 Bonus ------- High Alert Combat Kills 15 Follower Combat Kills 185 Aligned with FarCom 300 Met Imprinter 300 Destroyed Z-Imprinter 1000 Cogmind --------- Core Integrity 186/700 Matter 280/300 Energy 100/100 System Corruption 0% Temperature Cool (0) Movement Hovering (118) Ox1 Location -7/Deep Caves Parts ------- > --- POWER (1) -------- Zionite Light DM Reactor > --- PROPULSION (4) --- Zionite Glidesys I Zionite Glidesys I Zionite Glidesys I Zionite Glidesys I > --- UTILITY (6) ------ Experimental Heat Sink High-capacity Storage Unit Advanced Visual Processing Unit Core Analyzer Zionite Weapon Casing Zionite Light Carapace > --- WEAPON (2) ------- Advanced Assault Cannon Slug Cannon > --- INVENTORY (20) --- Improved Deuterium Engine Zionite Light DM Reactor Zionite Glidesys I Zionite Glidesys I Zionite Biocell (600) Zionite Biocell (600) High-capacity Matter Pod (162) Heavy Armor Plating Zionite Light Carapace Heavy EM Shotgun Zionite Laser-M Light EM Pulse Cannon EM Pulse Cannon Firepult Grenade Launcher Heavy Missile Launcher Great Maul Peak State ------------ > --- POWER ------------ Zionite Light DM Reactor > --- PROPULSION ------- Zionite Glidesys I Zionite Glidesys I Zionite Glidesys I Zionite Glidesys I > --- UTILITY ---------- Experimental Heat Sink High-capacity Storage Unit Advanced Visual Processing Unit Core Analyzer Zionite Weapon Casing Zionite Light Carapace > --- WEAPON ----------- Advanced Assault Cannon Slug Cannon > --- INVENTORY -------- Improved Deuterium Engine Zionite Light DM Reactor Zionite Glidesys I Zionite Glidesys I Zionite Biocell Zionite Biocell High-capacity Matter Pod Heavy Armor Plating Zionite Light Carapace Heavy EM Shotgun Zionite Laser-M Light EM Pulse Cannon EM Pulse Cannon Firepult Hypervelocity Gauss Rifle Grenade Launcher Heavy Missile Launcher Great Maul [Rating: 76] Favorites ----------- Power Heavy Deuterium Engine Engine Heavy Deuterium Engine Power Core Light Nuclear Core Reactor Zionite Light DM Reactor Propulsion Light Treads Treads Light Treads Wheel Armored Wheel Hover Unit Zionite Glidesys I Flight Unit Improved VTOL Module Utility High-capacity Storage Unit Device Improved Heat Sink Storage High-capacity Storage Unit Processor Advanced Visual Processing Unit Protection Makeshift Light Armor Plating Weapon Advanced Assault Cannon Energy Gun Small Laser Energy Cannon Heavy Particle Cannon Ballistic Gun Enhanced Autogun Ballistic Cannon Advanced Assault Cannon Launcher Grenade Launcher Special Weapon Mining Laser Impact Weapon Great Maul Build | -11 -10 -10 -10 -9 -8 -7 -7 -7 -7 -7 ------- Run | Yrd Mat Min Exi Min Mat Fac Low Low Zio Dee Slots Evolved 6 | . . . . . 4 2 . . . . Power . | . . . . . . . . . . . Propulsion 2 | . . . . . 2 . . . . . Utility 4 | . . . . . 2 2 . . . . Weapon . | . . . . . . . . . . . Parts Attached 168 | 7 20 2 1 4 67 14 11 1 7 34 Power 14 | 1 2 1 . . 6 1 . . . 3 Engine 8 | 1 2 1 . . 1 1 . . . 2 Core 5 | . . . . . 5 . . . . . Reactor 1 | . . . . . . . . . . 1 Propulsion 50 | 2 3 . . . 30 2 . . 2 11 Treads 40 | 2 3 . . . 27 2 . . 2 4 Leg . | . . . . . . . . . . . Wheel 1 | . . . . . . . . . . 1 Hover 7 | . . . . . 1 . . . . 6 Flight 2 | . . . . . 2 . . . . . Utility 37 | 2 3 . 1 . 10 7 3 . 2 9 Device 11 | 1 . . . . 4 . 2 . 1 3 Storage 5 | 1 2 . 1 . . . . . . 1 Processor 5 | . . . . . 2 3 . . . . Hackware . | . . . . . . . . . . . Protection 16 | . 1 . . . 4 4 1 . 1 5 Artifact . | . . . . . . . . . . . Weapon 67 | 2 12 1 . 4 21 4 8 1 3 11 Energy Gun 7 | 2 . . . . 2 . . . . 3 Energy Cannon 3 | . . . . . 2 . . . . 1 Ballistic Gun 17 | . 3 . . . 11 . . . . 3 Ballistic Cannon 21 | . 5 1 . 2 3 1 2 1 2 4 Launcher 6 | . 1 . . 1 . 1 2 . 1 . Special Weapon 7 | . 3 . . 1 3 . . . . . Impact Weapon 6 | . . . . . . 2 4 . . . Slashing Weapon . | . . . . . . . . . . . Piercing Weapon . | . . . . . . . . . . . Special Melee Weapon . | . . . . . . . . . . . Unidentified Prototypes 15 | . . . . . 5 1 . . . 9 Corrupted Parts 1 | . . . . . . . . . 1 . System Corruption 6 | . . . . . . . . . 6 . Parts Lost 18 | . . . . . 6 . 1 . . 11 Power 2 | . . . . . . . . . . 2 Propulsion 9 | . . . . . 4 . . . . 5 Utility 4 | . . . . . 1 . 1 . . 2 Weapon 3 | . . . . . 1 . . . . 2 Highest Loss Streak 9 | . . . . . 3 . 1 . . 9 To Critical Strikes . | . . . . . . . . . . . Average Slot Usage (%) 99 | . 99 100 100 100 98 100 99 100 99 89 Engine 8 | . 14 14 14 14 4 7 7 7 7 4 Core 1 | . . . . . 4 . . . . . Treads 30 | . 27 28 28 28 35 30 30 30 30 16 Device 9 | . 12 . . . 8 7 8 15 15 12 Storage 9 | . 14 14 14 14 9 7 7 7 7 7 Processor 9 | . . . . . 8 20 21 15 15 15 Protection 7 | . 1 14 14 14 9 9 7 7 7 5 Ballistic Gun 3 | . 5 . . . 9 . . . . 2 Ballistic Cannon 11 | . 17 23 28 26 7 9 7 7 6 8 Impact Weapon 2 | . . . . . . 5 5 7 6 . Naked Turns . | . . . . . . . . . . . Heaviest Build 82 | 13 32 34 54 54 68 72 72 67 70 82 Greatest Support 96 | 40 40 40 40 40 84 88 88 88 96 96 Greatest Overweight (x) 22 | . . . 1 1 22 . . . . 4 Average Overweight (x) . | . . . . 1 . . . . . . Largest Inventory Capacity 20 | 8 15 15 20 20 20 20 20 20 20 20 Average Capacity 18 | 7 12 15 19 20 20 20 20 20 20 20 Most Carried 20 | 6 15 15 18 20 20 20 20 20 20 20 Average Carried 18 | 2 12 15 16 18 19 19 19 19 19 19 Final Capacity 20 | 8 15 15 20 20 20 20 20 20 20 20 Final Carried 20 | 6 15 15 18 20 20 20 20 20 20 19 Class Distribution -------------------- 48% | Mutant 43% | Scavenger-Mutant 8% | Derelict-Mutant Dominant Class ---------------- Mutant | -10/Materials Mutant | -10/Mines Mutant | -10/Exiles Mutant | -9/Mines Scavenger-Mutant | -8/Materials Scavenger-Mutant | -7/Factory Scavenger-Mutant | -7/Lower Caves Scavenger-Mutant | -7/Lower Caves Derelict-Mutant | -7/Zion Scavenger-Mutant | -7/Deep Caves Resources | -11 -10 -10 -10 -9 -8 -7 -7 -7 -7 -7 ----------- Run | Yrd Mat Min Exi Min Mat Fac Low Low Zio Dee Matter Collected 5803 | 270 715 157 10 54 2490 787 279 108 73 860 Remotely 48 | . . . . . 48 . . . . . Salvage Created 4298 | 110 615 125 . 10 2315 622 175 105 . 221 Parts 235 | 6 47 6 . 3 125 24 12 . . 12 Haulers Intercepted 7 | . 2 . . . 5 . . . . . Recyclers Shooed 10 | . 1 3 . . 4 2 . . . . Parts Field Recycled . | . . . . . . . . . . . Retrieved Matter . | . . . . . . . . . . . Parts Self-Destructed 21 | . . . . . . . 16 2 3 . Prevented 1 | . . . . . . . . 1 . . Kills | -11 -10 -10 -10 -9 -8 -7 -7 -7 -7 -7 ------- Run | Yrd Mat Min Exi Min Mat Fac Low Low Zio Dee Combat Hostiles Destroyed 78 | . 14 4 . 3 35 9 9 . . 4 Guns 28 | . 4 . . . 23 . . . . 1 Cannons 41 | . 10 4 . . 12 9 4 . . 2 AOE 8 | . . . . 3 . . 5 . . . Classes Destroyed 18 | 3 4 1 . . 6 1 1 1 . 1 Worker 4 | 1 1 . . . 1 1 . . . . Builder 2 | . . . . . 1 1 . . . . Tunneler 2 | 1 1 . . . . . . . . . Hauler 7 | . 2 . . . 5 . . . . . Recycler 16 | 1 2 . . . 9 4 . . . . Operator 3 | . . . . . 3 . . . . . Watcher 10 | . 3 . . . 5 2 . . . . Swarmer 20 | . 6 . . 3 5 . 6 . . . Grunt 28 | . 8 2 . . 13 5 . . . . Brawler 1 | . . . . . . . 1 . . . Duelist 2 | . . . . . 1 . 1 . . . Sentry 17 | . . 2 . . 12 2 1 . . . Specialist 2 | . . . . . 2 . . . . . Hunter 1 | . . . . . 1 . . . . . Programmer 2 | . . . . . . 2 . . . . Heavy 1 | . . . . . 1 . . . . . Z-Light 3 | . . . . . . . . . . 3 Samaritan 2 | . . . . . . . . 2 . . Best Kill Streak 9 | 1 4 2 . 3 9 4 4 . . 2 Combat Bots Only 5 | . 3 2 . 3 5 3 4 . . 2 Max Kills in Single Turn 2 | 1 2 1 . 1 1 2 2 1 . 1 Gunslinging . | . . . . . . . . . . . Exploded 2 | . . . . 1 . . 2 . . . Melee . | . . . . . . . . . . . Uniques/NPCs Destroyed 1 | . . . . . . . . . . 1 Z-Imprinter (-7/Deep Caves) Combat | -11 -10 -10 -10 -9 -8 -7 -7 -7 -7 -7 -------- Run | Yrd Mat Min Exi Min Mat Fac Low Low Zio Dee Hostile Shots Fired 581 | . 49 26 . 7 246 79 63 . . 111 Missed 168 | . 8 5 . 2 81 27 22 . . 23 Damage Taken 7105 | . 414 323 . 45 2724 603 416 . . 2580 Core 963 | . 106 48 . 5 290 38 37 . . 439 Absorbed by Shields 18 | . . . . . . . . . . 18 Redirected to Shielding 14 | . . 10 . 1 3 . . . . . Regen/Repaired (Parts) 344 | . 65 . . . 279 . . . . . Core Remaining (%) 61 | 100 . . . 36 47 . . . . . Volleys Fired 406 | 6 64 15 . 6 204 48 24 . . 39 Largest 2 | 2 2 2 . 1 2 2 2 . . 2 Hottest 250 | 80 100 70 . 100 100 96 96 . . 250 Shots Fired 732 | 12 115 30 . 6 395 75 37 1 . 61 Gun 342 | 12 38 . . . 257 . . . . 35 Cannon 365 | . 70 30 . 1 129 75 33 1 . 26 Launcher 8 | . . . . 4 . . 4 . . . Special 17 | . 7 . . 1 9 . . . . . Kinetic 675 | . 99 30 . 1 382 75 33 1 . 54 Thermal 49 | 12 16 . . 1 13 . . . . 7 Explosive 8 | . . . . 4 . . 4 . . . Electromagnetic . | . . . . . . . . . . . Robot Hit Streak 26 | 4 11 5 . 1 26 12 8 . . 6 Robot Miss Streak 6 | 2 3 1 . 1 4 4 3 . . 6 Penetration Max . | . . . . . . . . . . . Secondary Targets 1 | . . . . . . . . . . 1 Max Gunslinging Chain 1 | . . . . . . . . . . 1 Shots Hit Robots 462 | 7 62 23 . 1 275 49 19 2 . 24 Core Hits 185 | 3 28 8 . 3 100 19 12 . . 12 Critical Kills . | . . . . . . . . . . . Critical Parts Destroyed 8 | . . . . . 3 1 . . . 4 Critical Strikes 19 | . 2 1 . . 9 2 1 . . 4 Destroy 7 | . . . . . 3 . . . . 4 Blast 11 | . 2 1 . . 6 1 1 . . . Smash 1 | . . . . . . 1 . . . . Melee Attacks 46 | . . . . . . 32 4 3 7 . Impact 46 | . . . . . . 32 4 3 7 . Slashing . | . . . . . . . . . . . Piercing . | . . . . . . . . . . . Sneak Attacks 6 | . . . . . . 4 . 2 . . Combat Hostiles . | . . . . . . . . . . . Follow-up Attacks . | . . . . . . . . . . . Damage Inflicted 10249 | 78 996 409 . 314 5218 1768 813 146 . 507 Guns 3531 | 77 263 . . . 3000 . . . . 191 Cannons 5227 | . 703 403 . . 2167 1191 513 . . 250 Explosions 673 | . . . . 307 . . 300 . . 66 Melee 709 | . . . . . . 563 . 146 . . Ramming 109 | 1 30 6 . 7 51 14 . . . . Kinetic 8511 | . 920 403 . . 5167 1191 513 . . 317 Thermal 313 | 77 46 . . . . . . . . 190 Explosive 607 | . . . . 307 . . 300 . . . Electromagnetic . | . . . . . . . . . . . Impact 709 | . . . . . . 563 . 146 . . Slashing . | . . . . . . . . . . . Piercing . | . . . . . . . . . . . Highest Corruption 6 | . . . . . . 2 2 2 6 . Average Corruption 1 | . . . . . . 1 2 2 2 . Corruption Purged . | . . . . . . . . . . . Corruption Blocked . | . . . . . . . . . . . Effects 31 | . . . . . . 8 14 7 2 . Message Errors 7 | . . . . . . 1 5 1 . . Matter Fused 6 | . . . . . . 2 3 . 1 . Heat Flow Errors 3 | . . . . . . 1 1 1 . . Energy Discharges 5 | . . . . . . 2 2 . 1 . Data Loss (minor) 4 | . . . . . . 1 1 2 . . Data Loss (major) 3 | . . . . . . . 1 2 . . Misfires 2 | . . . . . . . 1 1 . . Alerts 1 | . . . . . . 1 . . . . Overload Shots . | . . . . . . . . . . . Overflow Damage 698 | . 4 . . 116 51 384 8 135 . . Projectiles 78 | . 4 . . . 51 20 3 . . . Explosions 121 | . . . . 116 . . 5 . . . Melee 499 | . . . . . . 364 . 135 . . Knockbacks 43 | . 7 3 . . 19 10 2 . . 2 Impact 6 | . 1 1 . . 1 3 . . . . Kinetic 34 | . 4 2 . . 17 7 2 . . 2 Secondary 3 | . 2 . . . 1 . . . . . Self-Inflicted Damage . | . . . . . . . . . . . Shots . | . . . . . . . . . . . Rammed 17 | . 7 2 . 2 4 2 . . . . Targets Rammed 20 | 1 8 2 . 2 5 2 . . . . Kicked . | . . . . . . . . . . . Crushed 3 | 1 1 . . . 1 . . . . . Highest Temperature 267 | 54 96 171 . 24 138 248 210 69 . 267 Average Temperature 41 | 29 27 86 . 13 18 56 71 34 . 107 Received Heat Transfer 2310 | . 132 90 . . 999 249 54 . . 786 Siege Activations . | . . . . . . . . . . . Robots Corrupted . | . . . . . . . . . . . Combat Hostiles . | . . . . . . . . . . . Parts Fried 5 | . . . . . . 3 . 2 . . Impact Corruptions 17 | . . . . . . 8 . 9 . . Robots Melted . | . . . . . . . . . . . Combat Hostiles . | . . . . . . . . . . . Parts Melted 3 | . . . . . . . . . . 3 Heat Transferred 486 | 175 100 . . . . . . . . 211 Parts Sabotaged . | . . . . . . . . . . . Parts Stolen . | . . . . . . . . . . . Parts Stripped . | . . . . . . . . . . . Power Chain Reactions . | . . . . . . . . . . . Alert | -11 -10 -10 -10 -9 -8 -7 -7 -7 -7 -7 ------- Run | Yrd Mat Min Exi Min Mat Fac Low Low Zio Dee Peak Influence 450 | 10 284 172 . 94 450 416 . . . . Initial 189 | . 9 67 . . 36 189 . . . . Average 161 | 5 117 122 . 23 202 188 . . . . Maximum Alert Level 2 | . 1 . . . 2 2 . . . . Low Security (%) 71 | 100 74 100 . 100 65 62 . . . . Level 1 17 | . 25 . . . 10 33 . . . . Level 2 11 | . . . . . 24 4 . . . . Level 3 . | . . . . . . . . . . . Level 4 . | . . . . . . . . . . . Level 5 . | . . . . . . . . . . . High Security . | . . . . . . . . . . . Max Security . | . . . . . . . . . . . Squads Dispatched 22 | . 5 . . 1 11 5 . . . . Investigation 6 | . 3 . . . 2 1 . . . . Extermination 2 | . . . . . . 2 . . . . Reinforcement 10 | . 2 . . 1 5 2 . . . . Assault 1 | . . . . . 1 . . . . . Garrison 3 | . . . . . 3 . . . . . Intercept . | . . . . . . . . . . . Searches Triggered . | . . . . . . . . . . . Construction Impeded 4 | . . . . 1 1 2 . . . . Haulers Reinforced . | . . . . . . . . . . . Active Scanning Responses . | . . . . . . . . . . . Cargo Convoy Interrupts . | . . . . . . . . . . . Stealth | -11 -10 -10 -10 -9 -8 -7 -7 -7 -7 -7 --------- Run | Yrd Mat Min Exi Min Mat Fac Low Low Zio Dee Distress Signals 4 | . 1 . . . 2 1 . . . . Communications Jammed . | . . . . . . . . . . . Distress Signals . | . . . . . . . . . . . Times Spotted 124 | . 20 4 . 3 61 19 9 . . 8 Peak Tracking Total 5 | . 3 2 . 3 5 4 4 . . 4 Tactical Retreats 5 | . 1 . . . 3 1 . . . . Traps | -11 -10 -10 -10 -9 -8 -7 -7 -7 -7 -7 ------- Run | Yrd Mat Min Exi Min Mat Fac Low Low Zio Dee Traps Triggered 2 | . 1 . . . . 1 . . . . Indirectly . | . . . . . . . . . . . Trap Hack Attempts . | . . . . . . . . . . . Triggered . | . . . . . . . . . . . Disarmed . | . . . . . . . . . . . Reprogrammed . | . . . . . . . . . . . Reused . | . . . . . . . . . . . Traps Extracted . | . . . . . . . . . . . Installed . | . . . . . . . . . . . Triggered 1 | . . . . . . . . 1 . . Machines | -11 -10 -10 -10 -9 -8 -7 -7 -7 -7 -7 ---------- Run | Yrd Mat Min Exi Min Mat Fac Low Low Zio Dee Machines Disabled 5 | . 1 . . . 1 1 . . . 2 Max in Single Turn 1 | . 1 . . . 1 1 . . . . Garrison Access 2 | . . . . . 1 1 . . . . Machines Repaired . | . . . . . . . . . . . Machines Dismantled . | . . . . . . . . . . . Machines Sabotaged . | . . . . . . . . . . . Overloaded Fab Kills . | . . . . . . . . . . . Hacking | -11 -10 -10 -10 -9 -8 -7 -7 -7 -7 -7 --------- Run | Yrd Mat Min Exi Min Mat Fac Low Low Zio Dee Machines Accessed 32 | . 8 . 2 . 13 7 1 1 . . Terminals 18 | . 5 . . . 8 5 . . . . Fabricators . | . . . . . . . . . . . Repair Stations 3 | . 1 . . . 2 . . . . . Recycling Units 5 | . 2 . . . 2 1 . . . . Scanalyzers . | . . . . . . . . . . . Garrison Access 2 | . . . . . 1 1 . . . . Total Hacks 89 | . 25 . 5 . 46 11 1 1 . . Successful 44 | . 12 . 5 . 23 2 1 1 . . Failed 45 | . 13 . . . 23 9 . . . . Catastrophic 9 | . 1 . . . 4 4 . . . . Database Lockouts . | . . . . . . . . . . . Manual 33 | . 10 . 1 . 20 2 . . . . Terminals 55 | . 15 . . . 33 7 . . . . Fabricators . | . . . . . . . . . . . Repair Stations 9 | . 4 . . . 5 . . . . . Recycling Units 16 | . 6 . . . 7 3 . . . . Scanalyzers . | . . . . . . . . . . . Garrison Access 2 | . . . . . 1 1 . . . . Terminal Hacks 28 | . 6 . 5 . 15 . 1 1 . . Record 4 | . . . 4 . . . . . . . Part Schematic 2 | . 1 . . . 1 . . . . . Robot Analysis 1 | . . . . . 1 . . . . . Prototype ID Bank 2 | . . . . . 2 . . . . . Open Door 2 | . . . . . . . 1 1 . . Terminal Index 1 | . . . . . 1 . . . . . Unreport Threat 4 | . . . . . 4 . . . . . Locate Traps 2 | . 1 . . . 1 . . . . . Recall Investigation 1 | . 1 . . . . . . . . . Recall Reinforcements 1 | . . . . . 1 . . . . . Hauler Manifests 2 | . 1 . . . 1 . . . . . Zone Layout 5 | . 2 . . . 3 . . . . . Derelict Proto ID Bank 1 | . . . 1 . . . . . . . Fabricator Hacks . | . . . . . . . . . . . Repair Station Hacks 6 | . 4 . . . 2 . . . . . Scan Component 3 | . 2 . . . 1 . . . . . Repair 3 | . 2 . . . 1 . . . . . Recycling Unit Hacks 3 | . . . . . 2 1 . . . . Retrieve Matter 1 | . . . . . . 1 . . . . Retrieve Components 2 | . . . . . 2 . . . . . Scanalyzer . | . . . . . . . . . . . Garrison Access Hacks 2 | . . . . . 1 1 . . . . Seal Access 2 | . . . . . 1 1 . . . . Unauthorized Hacks 5 | . 2 . . . 3 . . . . . Terminals 2 | . . . . . 2 . . . . . Botnet 2 | . . . . . 2 . . . . . Fabricators . | . . . . . . . . . . . Repair Stations . | . . . . . . . . . . . Recycling Units 3 | . 2 . . . 1 . . . . . Tunnel 3 | . 2 . . . 1 . . . . . Scanalyzers . | . . . . . . . . . . . Garrison Access . | . . . . . . . . . . . Data Cores Recovered . | . . . . . . . . . . . Used . | . . . . . . . . . . . Hacking Detections 24 | . 6 . . . 12 6 . . . . Full Trace Events 2 | . 1 . . . 1 . . . . . Feedback Events . | . . . . . . . . . . . Feedback Blocked . | . . . . . . . . . . . Robot Schematics Acquired 2 | . . . . . . . . . 2 . Robots Built . | . . . . . . . . . . . Authchips . | . . . . . . . . . . . Time . | . . . . . . . . . . . Total Robot Build Rating . | . . . . . . . . . . . Part Schematics Acquired 18 | . 1 . . . 1 . . . 16 . Parts Built . | . . . . . . . . . . . Authchips . | . . . . . . . . . . . Time . | . . . . . . . . . . . Total Part Build Rating . | . . . . . . . . . . . Parts Repaired 3 | . 2 . . . 1 . . . . . Time 90 | . 52 . . . 38 . . . . . Parts Recycled . | . . . . . . . . . . . Recycled Matter . | . . . . . . . . . . . Retrieved Matter . | . . . . . . . . . . . Retrieved Components 19 | . . . . . 19 . . . . . Parts Scanalyzed . | . . . . . . . . . . . Part Schematics Acquired . | . . . . . . . . . . . Parts Damaged . | . . . . . . . . . . . Bothacking | -11 -10 -10 -10 -9 -8 -7 -7 -7 -7 -7 ------------ Run | Yrd Mat Min Exi Min Mat Fac Low Low Zio Dee Used RIF Installer . | . . . . . . . . . . . Robots Hacked . | . . . . . . . . . . . Non-combat . | . . . . . . . . . . . Combat . | . . . . . . . . . . . Robot Hacks Applied . | . . . . . . . . . . . Relay Couplers Released . | . . . . . . . . . . . Fabnet Peak Effective % . | . . . . . . . . . . . Robots Rewired . | . . . . . . . . . . . Allies Hacked . | . . . . . . . . . . . Hacks Repelled . | . . . . . . . . . . . Allies | -11 -10 -10 -10 -9 -8 -7 -7 -7 -7 -7 -------- Run | Yrd Mat Min Exi Min Mat Fac Low Low Zio Dee Total Allies 1 | . . . . . . . . . . 1 Largest Group 1 | . . . . . . . . . . 1 Highest-Rated Group 119 | . . . . . . . . . . 119 Highest-Rated Ally 119 | . . . . . . . . . . 119 Total Orders . | . . . . . . . . . . . Ally Attacks 21 | . . . . . . . . . . 21 Total Damage 2313 | . . . . . . . . . . 2313 Kills 10 | . . . . . . . . . . 10 Allies Corrupted . | . . . . . . . . . . . Allies Melted . | . . . . . . . . . . . Intel | -11 -10 -10 -10 -9 -8 -7 -7 -7 -7 -7 ------- Run | Yrd Mat Min Exi Min Mat Fac Low Low Zio Dee Robot Analysis Total 1 | . . . . . 1 . . . . . Derelict Logs Recovered 5 | . . . . 1 . . 2 1 1 . Drone Launches . | . . . . . . . . . . . Drone Recoveries . | . . . . . . . . . . . Exploration | -11 -10 -10 -10 -9 -8 -7 -7 -7 -7 -7 ------------- Run | Yrd Mat Min Exi Min Mat Fac Low Low Zio Dee Turns Passed 14146 | 115 2345 378 727 596 4112 1779 1100 522 1776 696 Spaces Moved 7182 | 54 1176 202 327 217 1963 917 624 307 1068 327 Core 7 | 6 . . . . 1 . . . . . Treads 7063 | 48 1176 202 327 217 1962 917 624 307 1068 215 Legs . | . . . . . . . . . . . Wheels . | . . . . . . . . . . . Hover 112 | . . . . . . . . . . 112 Flight . | . . . . . . . . . . . Fastest Speed 50 | 50 160 160 160 240 152 162 162 162 162 118 Average Speed 165 | 147 160 160 221 240 159 162 162 162 162 159 Slowest Speed 1150 | 160 160 160 240 240 1150 162 162 162 165 400 Overloaded Moves . | . . . . . . . . . . . Propulsion Burnouts . | . . . . . . . . . . . Robots Hopped . | . . . . . . . . . . . Cave-ins Triggered . | . . . . . . . . . . . Exploration Rate (%) 55 | 5 98 28 70 51 92 21 71 52 86 34 Regions Visited 10 Branch Regions 7 Pre-discovered Areas 9 | . 2 . 1 1 1 . . . 4 . Known Exits Taken 3 | . . . . . 1 1 1 . . . Unknown Exits Taken 7 | 1 1 1 1 1 . . . 1 1 . Scrap Searched 11 | . . . . 2 . . 2 3 4 . Spaces Dug 68 | . 5 . . 19 10 26 4 1 3 . Terrain Destroyed 148 | . 6 . . 31 42 38 13 1 3 14 Melee 31 | . . . . . . 23 4 1 3 . Projectile 78 | . 6 . . 1 42 15 2 . . 12 AOE 37 | . . . . 30 . . 7 . . . Terrain Rammed . | . . . . . . . . . . . Walls Destroyed . | . . . . . . . . . . . Machines Disabled . | . . . . . . . . . . . Actions | -11 -10 -10 -10 -9 -8 -7 -7 -7 -7 -7 --------- Run | Yrd Mat Min Exi Min Mat Fac Low Low Zio Dee Total 8630 | 73 1513 226 330 280 2600 1076 668 328 1093 443 Wait 591 | . 198 5 . 50 279 44 . 11 1 3 Move 7173 | 54 1175 201 326 216 1962 916 623 306 1067 327 Hop . | . . . . . . . . . . . Pick Up 85 | 6 24 . 2 2 25 7 3 3 3 10 Fast Attach 47 | 7 4 . . . 15 1 . . 3 17 Attach 24 | . . . . . 9 3 1 . . 11 Detach 16 | . . . . . 2 2 . . . 12 Swap 97 | . 16 2 1 4 43 10 10 1 4 6 Drop 126 | . 24 1 1 . 56 11 3 4 8 18 Fire 406 | 6 64 15 . 6 204 48 24 . . 39 Melee 46 | . . . . . . 32 4 3 7 . Ram . | . . . . . . . . . . . Kick . | . . . . . . . . . . . Crush 19 | . 8 2 . 2 5 2 . . . . Escape Stasis . | . . . . . . . . . . . Rewire . | . . . . . . . . . . . Trap . | . . . . . . . . . . . Miscellaneous . | . . . . . . . . . . . Route ------- -11/Scrapyard -10/Materials (discovered 6 exits: [*Mat x3] / [*Min x2] / [*Sub]) -10/Mines -10/Exiles -9/Mines -8/Materials (discovered 3 exits: *Fac x3) -7/Factory (discovered 2 exits: *Fac / *Low) -7/Lower Caves -7/Lower Caves -7/Zion (discovered 2 exits: [*Dee] / [*Pro]) -7/Deep Caves History --------- Turn | Location | Event 12 | -11/Scrapyard | Discovered new exit (range 14) 116 | -11/Scrapyard | Entered Materials 206 | -10/Materials | Discovered new exit (range 15) 300 | -10/Materials | Build established: Mutant 662 | -10/Materials | Repaired Lgt. Treads 1045 | -10/Materials | Discovered new exit (range 13) 1141 | -10/Materials | Discovered new exit (range 15) 1200 | -10/Materials | Discovered new exit (range 16) 1555 | -10/Materials | Discovered new exit (range 16) 1829 | -10/Materials | Repaired Lgt. Treads 1962 | -10/Materials | Discovered new exit (range 8) 2461 | -10/Materials | Entered Mines 2476 | -10/Mines | Met a Derelict bent on vengeance 2493 | -10/Mines | Deemed a non-threat by the Exiles lab entrance 2599 | -10/Mines | Core integrity fell below 50% 2833 | -10/Mines | Discovered new exit (range 5) 2839 | -10/Mines | Entered Exiles 2878 | -10/Exiles | Met 8R-AWN 2905 | -10/Exiles | Met EX-HEX 3030 | -10/Exiles | Met EX-DEC 3076 | -10/Exiles | Learned location of Zion (-7) 3236 | -10/Exiles | Met EX-BIN 3270 | -10/Exiles | Aligned with FarCom system 3272 | -10/Exiles | Given EX-Vault access code 3330 | -10/Exiles | Opened EX-Vault 3344 | -10/Exiles | Found Firepult 3391 | -10/Exiles | Warned to stay clear of 0b10 Research branches 3545 | -10/Exiles | Discovered new exit (range 11) 3566 | -10/Exiles | Left Exiles lab with Firepult 3566 | -10/Exiles | Entered Mines 3791 | -9/Mines | Assembled infested the area 3924 | -9/Mines | Learned location of 1 exit from Materials 4128 | -9/Mines | Discovered new exit (range 9) 4139 | -9/Mines | Learned location of Storage (-7) 4162 | -9/Mines | Entered Materials 4162 | -8/Materials | Evolved 4 slots: Propulsion x2, Utility x2 4163 | -8/Materials | Identified exit to Factory 4738 | -8/Materials | Build established: Scavenger-Mutant 4953 | -8/Materials | Discovered exit to Factory (range 16) 5614 | -8/Materials | Garrison activated, responded to threat 6252 | -8/Materials | Discovered exit to Factory (range 16) 6918 | -8/Materials | Garrison activated, responded to threat 7244 | -8/Materials | Core integrity fell below 50% 7278 | -8/Materials | Lost 3 parts (2n1w) 7832 | -8/Materials | Build established: Mutant 7970 | -8/Materials | Repaired Arm. Treads 8162 | -8/Materials | First assault squad dispatched 8274 | -8/Materials | Entered Factory 8274 | -7/Factory | Evolved 2 slots: Utility x2 8736 | -7/Factory | Discovered new exit (range 7) 8835 | -7/Factory | Identified exit to Factory 8936 | -7/Factory | Build established: Scavenger-Mutant 9499 | -7/Factory | Discovered new exit (range 3) 9502 | -7/Factory | Identified exit to Lower Caves 10053 | -7/Factory | Entered Lower Caves 10491 | -7/Lower Caves | Learned Factory security intel 10611 | -7/Lower Caves | Attracted the attention of an 0b10 checkpoint 10826 | -7/Lower Caves | Learned Factory garrison access intel 10896 | -7/Lower Caves | Discovered new exit (range 11) 10910 | -7/Lower Caves | Identified exit to Lower Caves 11153 | -7/Lower Caves | Entered another Lower Caves area 11203 | -7/Lower Caves | Spotted B-75 Beast 11398 | -7/Lower Caves | Learned Factory emergency access door positions 11612 | -7/Lower Caves | Discovered new exit (range 5) 11675 | -7/Lower Caves | Entered Zion 11815 | -7/Zion | System corruption cleaned by Quarantine Array 11881 | -7/Zion | Discovered new exit (range 19) 12088 | -7/Zion | Learned location of 1 exit from Factory 12096 | -7/Zion | Learned location of Warlord (-4) 12156 | -7/Zion | Learned location of Recycling (-7) 12166 | -7/Zion | Learned Factory emergency access door positions 12195 | -7/Zion | Build established: Mutant 12603 | -7/Zion | Received a hallucinogenic algorithm 12726 | -7/Zion | Build established: Derelict-Mutant 12997 | -7/Zion | System corruption cleaned by Quarantine Array 13238 | -7/Zion | Rebuked by Imprinter 13398 | -7/Zion | Discovered new exit (range 5) 13400 | -7/Zion | Saw the warning signs outside the Deep Caves entrance 13451 | -7/Zion | Entered Deep Caves 13453 | -7/Deep Caves | Met 5H-AD0 13644 | -7/Deep Caves | Attacked by Z-Imprinter 13665 | -7/Deep Caves | Destroyed Z-Imprinter 13765 | -7/Deep Caves | Z-Facility disabled 13868 | -7/Deep Caves | Core integrity fell below 50% 13911 | -7/Deep Caves | Found Prototype Protection 13911 | -7/Deep Caves | Identified Zio. Weapon Casing 13920 | -7/Deep Caves | Lost 9 parts (1p4n2u2w) 14011 | -7/Deep Caves | Found Prototype Protection 14011 | -7/Deep Caves | Identified Zio. Heavy Carapace 14094 | -7/Deep Caves | Found Zio. Weapon Casing 14147 | -7/Deep Caves | Self-destructed Last Messages --------------- 14017_ Dropped Zio. Heavy Carapace. 14020_ Dropped Zio. Glidesys I. 14020_ Acquired Zio. Glidesys I. 14021_ Extracted 2 energy. 14024_ Acquired 61 matter. 14067_ Dropped Imp. Shield Generator. 14067_ Dropped Imp. Heat Sink. 14068_ Dropped Lgt. Treads. 14072_ Acquired Lgt. Treads. 14090_ Acquired 6 matter. 14091_ Acquired 5 matter. 14092_ Acquired 30 matter. 14094_ Acquired Zio. Weapon Casing. 14098_ Acquired Zio. Biocell. 14107_ Dropped Lgt. Treads. 14127_ Acquired Zio. Glidesys I. 14129_ Acquired Zio. Light DM Reactor. 14137_ Acquired Zio. Light Carapace. 14144_ Extracted 276 energy. 14146_ Dropped Hyp. Gauss Rifle. Map ----- +----------------------------------------------------+ | | | | | | | | | | | | | | | | | | | | | | | | | | | | | | | | | | | | | | | | | | | | | | | | | ?????????????????????##############???####???????? | | ?????????????????????# ![@!!*!! !*#???# !#????#### | | ?????????????????????# !!! #???# ###### | | ?????????????????????# ### !#;####??## ["## | | ????????????????????## #####[;;""#####" "## | | ??????????????????### ###### " #"" "" | | ??????????????????# " ![! "" | | ??????????????????# !! == | | ??????????????????## ![!!! | | ???????????????????### ! [ ! | | ?????????????????????## % | | ????????????????????## "" " | | ??????????????????###" """"""" | | ?????????????????## " """""" | | ?????????????????# """"""" | | ?????????????????#!=# """"" | | ?????????????????##### """ | | ?????????????????????# " ?? | | ????????????????????# " ?? | | ????????????????????## | | ?????????????????????# | | ?????????????????????# ? | | ????????????????????? ? | | ???????????????????? ?? | | ??????????????????? ? | | ??????????????????? ? | +----------------------------------------------------+ Best States ------------- Heat Dissipation 74 Energy Generation 27 Energy Capacity 310 Matter Stores 300 Matter Capacity 300 Sight Range 20 Terrain Scan Density 10 Armor Coverage 400 Core Shielding 20 Weapon Shielding 100 Evasion (%) 40 Targeting Accuracy 8 Core Analysis 6 Recoil Reduction 4 Item Schematics ----------------- Hcp. Storage Unit | -10/Materials | Hacked Plasma Cutter | -8/Materials | Hacked Force Booster | -7/Zion | Archive Matter Compressor | -7/Zion | Archive Lrn. Phase Cannon | -7/Zion | Archive Lightning Gun | -7/Zion | Archive Imp. Particle Charger | -7/Zion | Archive Stasis Canceller | -7/Zion | Archive Matter Filter | -7/Zion | Archive Imp. Transmission Jammer | -7/Zion | Archive Mapping Drone Bay | -7/Zion | Archive Arc Projector | -7/Zion | Archive Thermal Shield | -7/Zion | Archive Armor Integrity Analyzer | -7/Zion | Archive Bore Cannon | -7/Zion | Archive Arm. Huge Wheel | -7/Zion | Archive Adv. Melee Analysis Suite | -7/Zion | Archive Hvy. Laser | -7/Zion | Archive Robot Schematics ------------------ T-07 Excavator | -7/Zion | Archive G-47 Trooper | -7/Zion | Archive Fabricated ------------ Nothing Alien Tech Used ----------------- None Achievements -------------- None Challenges ------------ None Game ------ Seed MyomerAuthchipShearcannon Manual? 0 Play Time 01:33:34 Cumulative 142.5 hours Start 2024.05.02 @ 14:03:32 End 2024.05.08 @ 21:10:57 Sessions 7 Manual Loads 0 Difficulty Rogue Special Mode None Game No. 80 Rogue 80 Adventurer 0 Explorer 0 Win Type - Total 5 Types 3/0/1/1/0/0/0/0/0 Lore% 59 Gallery% 78 Achievement% 56 Wizard Run 0 Options --------- Layout 2 ASCII 0 Keyboard 1 Movement Numpad Keybinds 0 Fullscreen 2 Font 32/Tamsyn Map View 50x44 Zoom Use 0% Tactical HUD 1 Map Filters NONE Filters NONE Steam 1 RUN: ddd465ab-f63f-42a6-a4bf-841f5f34d9ca